fUST/lending_fUST_20250323
["ID","MTS","AMOUNT","RATE_DAILY","PERIOD"]
[356582008,1742726947761,-545.1,0.00013698,2]
[356582009,1742726947784,-1161.89,0.00013698,2]
[356582010,1742726947807,-500.0,0.00013698,2]
[356582011,1742726947829,-500.0,0.00013698,2]
[356582012,1742726947852,-698.55,0.00013698,2]
[356582013,1742726947875,-532.93,0.00013698,2]
[356582014,1742726947898,-534.72,0.00013698,2]
[356582015,1742726947920,-522.66,0.00013698,2]
[356582016,1742726947943,-500.0,0.00013698,2]
[356582017,1742726947965,-1308.33,0.00013698,2]
[356582018,1742726947986,-500.0,0.00013698,2]
[356582019,1742726948008,-500.0,0.00013698,2]
[356582020,1742726948030,-500.0,0.00013698,2]
[356582021,1742726948052,-727.42,0.00013698,2]
[356582022,1742726948073,-546.44,0.00013698,2]
[356582023,1742726948096,-500.0,0.00013698,2]
[356582024,1742726948118,-587.11,0.00013698,2]
[356582025,1742726948141,-500.0,0.00013698,2]
[356582026,1742726948164,-500.0,0.00013698,2]
[356582027,1742726948186,-717.58,0.00013698,2]
[356582028,1742726948427,-500.0,0.00013698,2]
[356582029,1742726948451,-500.0,0.00013698,2]
[356582030,1742726948471,-500.0,0.00013698,2]
[356582031,1742726948492,-642.0,0.00013698,2]
[356582032,1742726948514,-500.0,0.00013698,2]
[356582033,1742726948537,-500.0,0.00013698,2]
[356582034,1742726948558,-500.0,0.00013698,2]
[356582035,1742726948578,-728.12,0.00013698,2]
[356582036,1742726948600,-708.39,0.00013698,2]
[356582037,1742726948621,-1725.54,0.00013698,2]
[356582038,1742726948643,-500.0,0.00013698,2]
[356582039,1742726948665,-500.0,0.00013698,2]
[356582040,1742726948689,-500.0,0.00013698,2]
[356582041,1742726948712,-500.0,0.00013698,2]
[356582042,1742726948734,-500.0,0.00013698,2]
[356582043,1742726948757,-500.0,0.00013698,2]
[356582044,1742726948780,-500.0,0.00013698,2]
[356582045,1742726948802,-3616.63,0.00013698,2]
[356582046,1742726948828,-500.0,0.00013698,2]
[356582047,1742726948849,-500.0,0.00013698,2]
[356582048,1742726948871,-989.8,0.00013698,2]
[356582049,1742726948891,-3482.32,0.00013698,2]
[356582050,1742726948917,-2073.2,0.00013698,2]
[356582051,1742726948937,-736.05,0.00013698,2]
[356582052,1742726948957,-500.22,0.00013698,2]
[356582053,1742726948979,-463.12140214,0.00013698,2]
[356582054,1742726950114,-501.98868732,0.00013673,2]
[356582055,1742726950136,-36.87859786,0.00013698,2]
[356582056,1742726950156,-500.0,0.00013698,2]
[356582057,1742726950177,-500.0,0.00013698,2]
[356582058,1742726950197,-500.0,0.00013698,2]
[356582059,1742726950218,-3059.38,0.00013698,2]
[356582060,1742726950238,-938.88,0.00013698,2]
[356582061,1742726950258,-500.0,0.00013698,2]
[356582062,1742726950278,-500.0,0.00013698,2]
[356582063,1742726950298,-500.0,0.00013698,2]
[356582064,1742726950321,-1791.68,0.00013698,2]
[356582065,1742726950340,-541.19,0.00013698,2]
[356582066,1742726950361,-412.00434557,0.00013698,2]
[356582067,1742726950381,-652.58,0.00013698,2]
[356582068,1742726950401,-888.76,0.00013698,2]
[356582069,1742726950422,-500.0,0.00013698,2]
[356582070,1742726950442,-1190.31,0.00013698,2]
[356582071,1742726950462,-607.94,0.00013698,2]
[356582072,1742726950483,-500.0,0.00013698,2]
[356582073,1742726950503,-551.03,0.00013698,2]
[356582074,1742726950523,-500.0,0.00013698,2]
[356582075,1742726950544,-405.401006,0.00013698,2]
[356582076,1742726950564,-500.0,0.00013698,2]
[356582077,1742726950584,-1239.52,0.00013698,2]
[356582078,1742726950604,-500.0,0.00013698,2]
[356582079,1742726950624,-500.0,0.00013698,2]
[356582080,1742726950644,-500.0,0.00013698,2]
[356582081,1742726950663,-1203.6,0.00013698,2]
[356582082,1742726950683,-500.0,0.00013698,2]
[356582083,1742726950702,-413.8234297,0.00013698,2]
[356582084,1742726950721,-821.73,0.00013698,2]
[356582085,1742726950742,-3657.17,0.00013698,2]
[356582086,1742726950762,-500.0,0.00013698,2]
[356582087,1742726950784,-500.0,0.00013698,2]
[356582088,1742726950804,-807.73,0.00013698,2]
[356582089,1742726950829,-1159.48,0.00013698,2]
[356582090,1742726950849,-500.0,0.00013698,2]
[356582091,1742726950872,-665.68,0.00013698,2]
[356582092,1742726950893,-824.87,0.00013698,2]
[356582093,1742726950916,-2252.65,0.00013698,2]
[356582094,1742726950936,-500.0,0.00013698,2]
[356582095,1742726950957,-500.0,0.00013698,2]
[356582096,1742726950978,-500.0,0.00013698,2]
[356582097,1742726951003,-2986.94,0.00013698,2]
[356582098,1742726951024,-500.0,0.00013698,2]
[356582099,1742726951045,-500.0,0.00013698,2]
[356582100,1742726951066,-2046.15,0.00013698,2]
[356582101,1742726951087,-500.0,0.00013698,2]
[356582102,1742726951109,-500.0,0.00013698,2]
[356582103,1742726951131,-1250.53,0.00013698,2]
[356582104,1742726951151,-500.0,0.00013698,2]
[356582105,1742726951172,-598.65,0.00013698,2]
[356582106,1742726951194,-500.0,0.00013698,2]
[356582107,1742726951215,-3394.99,0.00013698,2]
[356582108,1742726951236,-500.0,0.00013698,2]
[356582109,1742726951255,-500.0,0.00013698,2]
[356582110,1742726951275,-896.99,0.00013698,2]
[356582111,1742726951294,-559.6,0.00013698,2]
[356582112,1742726951313,-9144.59,0.00013698,2]
[356582113,1742726951332,-3647.37,0.00013698,2]
[356582114,1742726951352,-5154.6,0.00013698,2]
[356582115,1742726951371,-607.26,0.00013698,2]
[356582116,1742726951392,-500.0,0.00013698,2]
[356582117,1742726951411,-500.0,0.00013698,2]
[356582118,1742726951430,-1411.1,0.00013698,2]
[356582119,1742726951483,-644.79267944,0.00013698,2]
[356582120,1742726951503,-500.0,0.00013698,2]
[356582121,1742726951523,-728.25,0.00013698,2]
[356582122,1742726951542,-1627.46,0.00013698,2]
[356582123,1742726951563,-24015.0,0.00013698,2]
[356582124,1742726951582,-2164.96,0.00013698,2]
[356582125,1742726951602,-500.0,0.00013698,2]
[356582126,1742726951624,-635.2,0.00013698,2]
[356582127,1742726951644,-502.66,0.00013698,2]
[356582128,1742726951664,-4977.22,0.00013698,2]
[356582129,1742726951684,-3047.22,0.00013698,2]
[356582130,1742726951703,-775.28,0.00013698,2]
[356582131,1742726951723,-500.0,0.00013698,2]
[356582132,1742726951741,-8002.21,0.00013698,2]
[356582133,1742726951760,-500.0,0.00013698,2]
[356582134,1742726951780,-500.0,0.00013698,2]
[356582135,1742726951799,-500.0,0.00013698,2]
[356582136,1742726951818,-500.0,0.00013698,2]
[356582137,1742726951837,-672.43,0.00013698,2]
[356582138,1742726951861,-4342.18345411,0.00013698,2]
[356582139,1742726957456,-150.0,0.00013698,2]
[356582140,1742726960882,-164.1889786,0.00013105,2]
[356582148,1742726963349,-331.30622172,0.00013105,2]
[356582149,1742726964164,-1684.89869235,0.00013105,2]
[356582150,1742726964186,-12308.81654589,0.00013698,2]
[356582151,1742726964213,-500.0,0.00013698,2]
[356582152,1742726964233,-39643.17185648,0.00013698,2]
[356582153,1742726969519,-150.0,0.00012974,2]
[356582154,1742726969543,-48.87302441,0.00013698,2]
[356582155,1742726970097,-920.91729629,0.00013698,2]
[356582156,1742726971086,-27828.0862765,0.00013698,2]
[356582157,1742726971760,520.2,0.00010959,2]
[356582158,1742726972142,-37822.26827632,0.00013698,2]
[356582159,1742726974227,-198.30041947,0.00013698,2]
[356582160,1742726977842,-206.01159091,0.00013698,2]
[356582208,1742727031969,-7790.5041826,0.00012655,2]
[356582210,1742727031978,-520.396726,0.00012764,2]
[356582215,1742727032022,-9479.603274,0.00012764,2]
[356582217,1742727032031,-179.4,0.00013,15]
[356582219,1742727032040,-300.0,0.00013176,2]
[356582220,1742727032050,-198.87302441,0.00013177,2]
[356582222,1742727032060,-404.31201038,0.00013561,2]
[356582224,1742727032070,-500.0,0.00013673,2]
[356582226,1742727032079,-500.0,0.00013673,2]
[356582228,1742727032089,-500.0,0.00013673,2]
[356582230,1742727032098,-267.70975758,0.00013673,2]
[356582233,1742727032107,-500.0,0.00013673,2]
[356582236,1742727032116,-500.0,0.00013673,2]
[356582238,1742727032125,-500.0,0.00013673,2]
[356582241,1742727032134,-500.0,0.00013673,2]
[356582244,1742727032143,-500.0,0.00013673,2]
[356582247,1742727032152,-500.0,0.00013673,2]
[356582249,1742727032163,-500.0,0.00013673,2]
[356582251,1742727032172,-151.0,0.0001369,2]
[356582253,1742727032181,-26377.71825899,0.00013698,2]
[356582277,1742727034301,-171.15166986,0.00013698,2]
[356582291,1742727037700,-365.04464029,0.00013698,2]
[356582292,1742727037754,-368.776,0.00013698,2]
[356582293,1742727038379,-15541.84069048,0.00013698,2]
[356582294,1742727038389,-500.0,0.00013698,2]
[356582295,1742727038398,-500.0,0.00013698,2]
[356582296,1742727038407,-500.0,0.00013698,2]
[356582297,1742727038417,-8505.25,0.00013698,2]
[356582298,1742727038427,-2071.25,0.00013698,2]
[356582299,1742727038437,-500.0,0.00013698,2]
[356582300,1742727038446,-500.0,0.00013698,2]
[356582301,1742727038455,-500.0,0.00013698,2]
[356582302,1742727038465,-500.0,0.00013698,2]
[356582303,1742727038474,-799.15,0.00013698,2]
[356582304,1742727038483,-500.0,0.00013698,2]
[356582305,1742727038492,-2076.69,0.00013698,2]
[356582306,1742727038501,-500.0,0.00013698,2]
[356582307,1742727038510,-500.0,0.00013698,2]
[356582308,1742727038519,-1115.2,0.00013698,2]
[356582309,1742727038529,-500.0,0.00013698,2]
[356582310,1742727038539,-500.0,0.00013698,2]
[356582311,1742727038548,-1626.23,0.00013698,2]
[356582312,1742727038557,-500.0,0.00013698,2]
[356582313,1742727038566,-500.0,0.00013698,2]
[356582314,1742727038575,-16095.54,0.00013698,2]
[356582315,1742727038584,-551.38,0.00013698,2]
[356582316,1742727038594,-500.0,0.00013698,2]
[356582317,1742727038603,-591.85,0.00013698,2]
[356582318,1742727038612,-3858.59,0.00013698,2]
[356582319,1742727038621,-500.0,0.00013698,2]
[356582320,1742727038630,-500.0,0.00013698,2]
[356582321,1742727038639,-3714.75,0.00013698,2]
[356582322,1742727038649,-500.0,0.00013698,2]
[356582323,1742727038658,-1801.81,0.00013698,2]
[356582324,1742727038667,-500.0,0.00013698,2]
[356582325,1742727038676,-500.0,0.00013698,2]
[356582326,1742727038686,-547.85,0.00013698,2]
[356582327,1742727038695,-2286.15,0.00013698,2]
[356582328,1742727038704,-500.0,0.00013698,2]
[356582329,1742727038713,-8290.29,0.00013698,2]
[356582330,1742727038722,-500.0,0.00013698,2]
[356582331,1742727038731,-500.0,0.00013698,2]
[356582332,1742727038740,-3778.1,0.00013698,2]
[356582333,1742727038750,-500.0,0.00013698,2]
[356582334,1742727038759,-691.75,0.00013698,2]
[356582335,1742727038768,-500.0,0.00013698,2]
[356582336,1742727038777,-500.0,0.00013698,2]
[356582337,1742727038786,-500.0,0.00013698,2]
[356582338,1742727038795,-500.0,0.00013698,2]
[356582339,1742727038804,-1041.3,0.00013698,2]
[356582340,1742727038813,-562.32355913,0.00013698,2]
[356582341,1742727038823,-500.0,0.00013698,2]
[356582342,1742727038833,-500.0,0.00013698,2]
[356582343,1742727038842,-1964.1,0.00013698,2]
[356582344,1742727038851,-500.0,0.00013698,2]
[356582345,1742727038860,-500.0,0.00013698,2]
[356582346,1742727038869,-500.0,0.00013698,2]
[356582347,1742727038879,-715.96,0.00013698,2]
[356582348,1742727038888,-178.928453,0.00013699,2]
[356582349,1742727038897,-20000.0,0.00013699,2]
[356582350,1742727038906,-500.0,0.00013699,2]
[356582351,1742727038916,-3250.05840774,0.00013699,2]
[356582352,1742727038925,-3250.05840774,0.00013699,2]
[356582353,1742727038934,-500.0,0.00013699,2]
[356582354,1742727038945,-3250.05840774,0.00013699,2]
[356582355,1742727038957,-500.0,0.00013699,2]
[356582356,1742727038966,-3250.05840774,0.00013699,2]
[356582357,1742727038976,-3250.05840774,0.00013699,2]
[356582358,1742727038985,-500.0,0.00013699,2]
[356582359,1742727038995,-3250.05840774,0.00013699,2]
[356582360,1742727039004,-3250.05840774,0.00013699,2]
[356582361,1742727039013,-3250.05840774,0.00013699,2]
[356582362,1742727039025,-3250.05840774,0.00013699,2]
[356582363,1742727039034,-508.86808782,0.00013699,2]
[356582364,1742727039043,-3250.05840774,0.00013699,2]
[356582365,1742727039053,-3250.05840774,0.00013699,2]
[356582366,1742727039062,-3250.05840774,0.00013699,2]
[356582367,1742727039071,-3250.05840774,0.00013699,2]
[356582368,1742727039081,-3250.05840774,0.00013699,2]
[356582369,1742727039090,-3250.05840774,0.00013699,2]
[356582370,1742727039099,-3250.05840774,0.00013699,2]
[356582371,1742727039108,-3250.05840774,0.00013699,2]
[356582372,1742727039117,-3250.05840774,0.00013699,2]
[356582373,1742727039127,-3250.05840774,0.00013699,2]
[356582374,1742727039136,-3250.05840774,0.00013699,2]
[356582375,1742727039146,-3250.05840774,0.00013699,2]
[356582376,1742727039155,-3250.05840774,0.00013699,2]
[356582377,1742727039165,-3250.05840774,0.00013699,2]
[356582378,1742727039175,-3250.05840774,0.00013699,2]
[356582379,1742727039184,-3250.05840774,0.00013699,2]
[356582380,1742727039193,-3250.05840774,0.00013699,2]
[356582381,1742727039202,-3250.05840774,0.00013699,2]
[356582382,1742727039211,-3250.05840774,0.00013699,2]
[356582383,1742727039221,-3250.05840774,0.00013699,2]
[356582384,1742727039230,-3250.05840774,0.00013699,2]
[356582385,1742727039239,-3250.05840774,0.00013699,2]
[356582386,1742727039248,-3250.05840774,0.00013699,2]
[356582387,1742727039258,-3250.05840774,0.00013699,2]
[356582388,1742727039267,-3250.05840774,0.00013699,2]
[356582389,1742727039277,-3250.05840774,0.00013699,2]
[356582390,1742727039286,-3250.05840774,0.00013699,2]
[356582391,1742727039296,-3250.05840774,0.00013699,2]
[356582392,1742727039305,-3250.05840774,0.00013699,2]
[356582393,1742727039315,-3250.05840774,0.00013699,2]
[356582394,1742727039324,-3250.05840774,0.00013699,2]
[356582395,1742727039334,-3250.05840774,0.00013699,2]
[356582396,1742727039343,-3250.05840774,0.00013699,2]
[356582397,1742727039353,-3250.05840774,0.00013699,2]
[356582398,1742727039362,-3250.05840774,0.00013699,2]
[356582399,1742727039372,-3250.05840774,0.00013699,2]
[356582400,1742727039381,-3250.05840774,0.00013699,2]
[356582401,1742727039391,-3250.05840774,0.00013699,2]
[356582402,1742727039400,-3250.05840774,0.00013699,2]
[356582403,1742727039410,-3250.05840774,0.00013699,2]
[356582404,1742727039419,-3250.05840774,0.00013699,2]
[356582405,1742727039430,-3250.05840774,0.00013699,2]
[356582406,1742727039440,-3250.05840774,0.00013699,2]
[356582407,1742727039449,-6832.85379458,0.00013699,2]
[356582408,1742727039458,-6832.85379458,0.00013699,2]
[356582410,1742727039467,-6832.85379458,0.00013699,2]
[356582412,1742727039477,-6832.85379458,0.00013699,2]
[356582413,1742727039486,-6832.85379458,0.00013699,2]
[356582414,1742727039495,-6832.85379458,0.00013699,2]
[356582415,1742727039504,-6832.85379458,0.00013699,2]
[356582416,1742727039513,-6832.85379458,0.00013699,2]
[356582417,1742727039522,-6832.85379458,0.00013699,2]
[356582418,1742727039531,-6832.85379458,0.00013699,2]
[356582419,1742727039540,-6832.85379458,0.00013699,2]
[356582420,1742727039550,-1327.59046118,0.00013699,2]
[356582421,1742727039563,-1219.75,0.00013699,2]
[356582446,1742727040294,-3380.04263034,0.00013699,2]
[356582447,1742727040870,-428.21868673,0.00013699,2]
[356582448,1742727041211,-477.25201633,0.00013699,2]
[356582449,1742727041220,-561.57683162,0.00013699,2]
[356582450,1742727041230,-999.08158164,0.00013699,2]
[356582451,1742727041245,-398.076,0.00013699,2]
[356582452,1742727041256,-3786.50324885,0.00013699,2]
[356582457,1742727042957,-500.0,0.00013698,2]
[356582458,1742727042967,-500.0,0.00013698,2]
[356582459,1742727042976,-500.0,0.00013698,2]
[356582460,1742727042986,-500.0,0.00013698,2]
[356582461,1742727042997,-1087.61613247,0.00013699,2]
[356582462,1742727043008,-6832.85379458,0.00013699,2]
[356582463,1742727043018,-6832.85379458,0.00013699,2]
[356582464,1742727043029,-6832.85379458,0.00013699,2]
[356582465,1742727043038,-6832.85379458,0.00013699,2]
[356582466,1742727043048,-6832.85379458,0.00013699,2]
[356582467,1742727043058,-6832.85379458,0.00013699,2]
[356582468,1742727043068,-6832.85379458,0.00013699,2]
[356582469,1742727043078,-6832.85379458,0.00013699,2]
[356582470,1742727043088,-6832.85379458,0.00013699,2]
[356582471,1742727043098,-6832.85379458,0.00013699,2]
[356582472,1742727043108,-6832.85379458,0.00013699,2]
[356582473,1742727043118,-6832.85379458,0.00013699,2]
[356582474,1742727043128,-6832.85379458,0.00013699,2]
[356582475,1742727043139,-6832.85379458,0.00013699,2]
[356582476,1742727043149,-6832.85379458,0.00013699,2]
[356582477,1742727043158,-371.37554968,0.00013699,2]
[356582485,1742727046112,-500.0,0.00013698,2]
[356582486,1742727046122,-500.0,0.00013698,2]
[356582487,1742727046131,-500.0,0.00013698,2]
[356582488,1742727046142,-6461.4782449,0.00013699,2]
[356582489,1742727046151,-6832.85379458,0.00013699,2]
[356582490,1742727046160,-6832.85379458,0.00013699,2]
[356582491,1742727046170,-6832.85379458,0.00013699,2]
[356582492,1742727046180,-6832.85379458,0.00013699,2]
[356582493,1742727046189,-6832.85379456,0.00013699,2]
[356582494,1742727046199,-6832.85379456,0.00013699,2]
[356582495,1742727046208,-6832.85379456,0.00013699,2]
[356582496,1742727046218,-2180.39389267,0.00013958,2]
[356582497,1742727046227,-500.0,0.00013972,2]
[356582498,1742727046237,-500.0,0.00013972,2]
[356582499,1742727046247,-663.99,0.00013972,2]
[356582500,1742727046256,-500.0,0.00013972,2]
[356582501,1742727046265,-500.0,0.00013972,2]
[356582502,1742727046275,-500.0,0.00013972,2]
[356582503,1742727046284,-545.1,0.00013972,2]
[356582504,1742727046293,-1161.89,0.00013972,2]
[356582505,1742727046303,-500.0,0.00013972,2]
[356582506,1742727046312,-500.0,0.00013972,2]
[356582507,1742727046322,-698.55,0.00013972,2]
[356582508,1742727046343,-532.93,0.00013972,2]
[356582509,1742727046353,-534.72,0.00013972,2]
[356582510,1742727046362,-522.66,0.00013972,2]
[356582511,1742727046372,-500.0,0.00013972,2]
[356582512,1742727046382,-1308.33,0.00013972,2]
[356582513,1742727046391,-378.44492685,0.00013972,2]
[356582514,1742727046400,-500.0,0.00013972,2]
[356582515,1742727046410,-500.0,0.00013972,2]
[356582516,1742727046420,-727.42,0.00013972,2]
[356582517,1742727046431,-546.44,0.00013972,2]
[356582518,1742727046441,-587.11,0.00013972,2]
[356582519,1742727046451,-500.0,0.00013972,2]
[356582520,1742727046461,-500.0,0.00013972,2]
[356582521,1742727046471,-717.58,0.00013972,2]
[356582522,1742727046481,-500.0,0.00013972,2]
[356582523,1742727046490,-500.0,0.00013972,2]
[356582524,1742727046500,-500.0,0.00013972,2]
[356582525,1742727046509,-642.0,0.00013972,2]
[356582526,1742727046520,-500.0,0.00013972,2]
[356582527,1742727046530,-500.0,0.00013972,2]
[356582528,1742727046541,-500.0,0.00013972,2]
[356582529,1742727046551,-728.12,0.00013972,2]
[356582530,1742727046561,-708.39,0.00013972,2]
[356582531,1742727046571,-500.0,0.00013972,2]
[356582532,1742727046581,-500.0,0.00013972,2]
[356582533,1742727046591,-500.0,0.00013972,2]
[356582534,1742727046601,-500.0,0.00013972,2]
[356582535,1742727046610,-500.0,0.00013972,2]
[356582536,1742727046620,-736.05,0.00013972,2]
[356582537,1742727046631,-500.0,0.00013972,2]
[356582538,1742727046642,-500.0,0.00013972,2]
[356582539,1742727046652,-500.0,0.00013972,2]
[356582540,1742727046662,-500.0,0.00013972,2]
[356582541,1742727046672,-500.0,0.00013972,2]
[356582542,1742727046682,-541.19,0.00013972,2]
[356582543,1742727046692,-888.76,0.00013972,2]
[356582544,1742727046702,-1190.31,0.00013972,2]
[356582545,1742727046713,-288.11824122,0.00013972,2]
[356582546,1742727046722,-500.0,0.00013972,2]
[356582547,1742727046732,-1239.52,0.00013972,2]
[356582548,1742727046742,-500.0,0.00013972,2]
[356582549,1742727046751,-500.0,0.00013972,2]
[356582550,1742727046761,-500.0,0.00013972,2]
[356582551,1742727046771,-1203.6,0.00013972,2]
[356582552,1742727046781,-500.0,0.00013972,2]
[356582553,1742727046791,-220.32420581,0.00013972,2]
[356582554,1742727147147,201.64,0.00010959,2]
[356582571,1742727488179,178.928453,0.00010959,2]
[356582577,1742727714567,181.045039,0.00012412,120]
[356582587,1742727941181,-694.69472344,0.00012288,2]
[356582588,1742727943070,-246.82970075,0.00012288,2]
[356582590,1742728043095,-1562.16538053,0.00012288,2]
[356582591,1742728043116,-181.045039,0.00012412,2]
[356582592,1742728043138,-234.48266968,0.00012562,2]
[356582593,1742728043159,-300.0,0.00012689,2]
[356582594,1742728043182,-500.0,0.0001269,2]
[356582595,1742728043203,-362.84611809,0.0001269,2]
[356582596,1742728043224,-185.06777864,0.0001269,2]
[356582597,1742728043245,-500.0,0.0001269,2]
[356582598,1742728043266,-500.0,0.0001269,2]
[356582599,1742728043288,-500.0,0.0001269,2]
[356582600,1742728043309,-1511.60994097,0.00012691,2]
[356582601,1742728045088,-8823.24922995,0.00012691,2]
[356582615,1742728145192,-250.0,0.0001251,2]
[356582616,1742728145214,-500.0,0.00012621,2]
[356582617,1742728145241,-454.15197219,0.00012621,2]
[356582618,1742728145263,-500.0,0.00012621,2]
[356582619,1742728145284,-195.04355263,0.00012621,2]
[356582620,1742728145306,-242.78530874,0.00012621,2]
[356582621,1742728145326,-300.0,0.00012621,2]
[356582622,1742728145347,-40340.3963889,0.00012622,2]
[356582623,1742728145368,-14565.14082908,0.00012691,2]
[356582624,1742728145388,-246.95736593,0.00013436,2]
[356582625,1742728145408,-7010.35155757,0.00013457,2]
[356582626,1742728145429,-155.75525182,0.0001365,2]
[356582627,1742728145449,-13480.9556535,0.0001365,2]
[356582628,1742728145470,-375.0855858,0.0001367,2]
[356582629,1742728145492,-505.73812158,0.00013673,2]
[356582630,1742728145513,-500.0,0.00013673,2]
[356582631,1742728145533,-500.0,0.00013673,2]
[356582632,1742728145554,-500.0,0.00013673,2]
[356582633,1742728145575,-638.70858366,0.00013673,2]
[356582634,1742728145596,-500.0,0.00013673,2]
[356582635,1742728145617,-500.0,0.00013673,2]
[356582636,1742728145636,-500.0,0.00013673,2]
[356582637,1742728145661,-500.0,0.00013673,2]
[356582638,1742728145682,-500.0,0.00013673,2]
[356582639,1742728145702,-500.0,0.00013673,2]
[356582640,1742728145724,-500.0,0.00013673,2]
[356582641,1742728145745,-500.0,0.00013673,2]
[356582642,1742728145765,-500.0,0.00013673,2]
[356582643,1742728145785,-500.0,0.00013673,2]
[356582644,1742728145805,-502.49664066,0.00013673,2]
[356582645,1742728145826,-500.0,0.00013673,2]
[356582646,1742728145846,-500.0,0.00013673,2]
[356582647,1742728145868,-500.0,0.00013673,2]
[356582648,1742728145889,-500.0,0.00013673,2]
[356582649,1742728145909,-503.86945735,0.00013673,2]
[356582650,1742728145930,-500.0,0.00013673,2]
[356582651,1742728145950,-500.0,0.00013673,2]
[356582652,1742728145971,-500.0,0.00013673,2]
[356582653,1742728145992,-250.0,0.00013678,2]
[356582654,1742728146012,-300.0,0.0001369,2]
[356582655,1742728146033,-32643.768552,0.00013698,3]
[356582656,1742728146055,-500.0,0.00013698,2]
[356582657,1742728146076,-637.07,0.00013698,2]
[356582658,1742728146096,-603.47,0.00013698,2]
[356582659,1742728146117,-814.43,0.00013698,2]
[356582660,1742728146138,-500.0,0.00013698,2]
[356582661,1742728146159,-607.6,0.00013698,2]
[356582662,1742728146178,-500.0,0.00013698,2]
[356582663,1742728146199,-500.0,0.00013698,2]
[356582664,1742728146219,-500.0,0.00013698,2]
[356582665,1742728146240,-500.0,0.00013698,2]
[356582666,1742728146261,-703.67,0.00013698,2]
[356582667,1742728146282,-500.0,0.00013698,2]
[356582668,1742728146303,-500.0,0.00013698,2]
[356582669,1742728146324,-500.0,0.00013698,2]
[356582670,1742728146344,-500.0,0.00013698,2]
[356582671,1742728146365,-804.19,0.00013698,2]
[356582672,1742728146385,-500.0,0.00013698,2]
[356582673,1742728146406,-517.56,0.00013698,2]
[356582674,1742728146428,-500.0,0.00013698,2]
[356582675,1742728146448,-500.0,0.00013698,2]
[356582676,1742728146468,-500.0,0.00013698,2]
[356582677,1742728146489,-813.3,0.00013698,2]
[356582678,1742728146523,-500.0,0.00013698,2]
[356582679,1742728146543,-2000.0,0.00013698,2]
[356582680,1742728146566,-500.0,0.00013698,2]
[356582681,1742728146587,-735.07,0.00013698,2]
[356582682,1742728146608,-1197.91,0.00013698,2]
[356582683,1742728146630,-500.0,0.00013698,2]
[356582684,1742728146655,-500.0,0.00013698,2]
[356582685,1742728146676,-500.0,0.00013698,2]
[356582686,1742728146698,-553.82,0.00013698,2]
[356582687,1742728146721,-500.0,0.00013698,2]
[356582688,1742728146743,-500.0,0.00013698,2]
[356582689,1742728146765,-500.0,0.00013698,2]
[356582690,1742728146786,-500.0,0.00013698,2]
[356582691,1742728146808,-500.0,0.00013698,2]
[356582692,1742728146830,-694.09,0.00013698,2]
[356582693,1742728146851,-500.0,0.00013698,2]
[356582694,1742728146872,-500.0,0.00013698,2]
[356582695,1742728146894,-500.0,0.00013698,2]
[356582696,1742728146919,-500.0,0.00013698,2]
[356582697,1742728146943,-500.0,0.00013698,2]
[356582698,1742728146966,-711.07,0.00013698,2]
[356582699,1742728147236,-500.0,0.00013698,2]
[356582700,1742728147258,-500.0,0.00013698,2]
[356582701,1742728147280,-800.6,0.00013698,2]
[356582702,1742728147301,-997.07,0.00013698,2]
[356582703,1742728147323,-500.0,0.00013698,2]
[356582704,1742728147344,-512.97,0.00013698,2]